bitfinex-derivatives/quotes_ETHF0:USTF0_20220106
["timestamp","ask_amount","ask_price","bid_price","bid_amount"]
[1641495449477,0.397182,3450.3,3449.7,2.71419058]
[1641495449682,0.397182,3450.3,3449.7,2.00479]
[1641495449878,0.384472,3450.2,3449.7,2.00479]
[1641495453180,0.397182,3450.1,3449.7,2.00479]
[1641495454382,0.384472,3450.2,3449.7,2.00479]
[1641495455083,0.781654,3450.2,3449.7,2.00479]
[1641495458184,1.62295123,3449.7,3449.2,2.00479]
[1641495458385,0.397182,3449.6,3449.2,2.00479]
[1641495458586,0.384472,3449.5,3449.2,2.00479]
[1641495458788,1.082772,3449.5,3449.2,2.00479]
[1641495459687,0.397182,3449.4,3448.8,2.00479]
[1641495459887,1.62326334,3449.0,3448.8,2.00479]
[1641495460098,1.62326334,3449.0,3448.9,0.459982]
[1641495461988,0.384472,3449.5,3448.9,3.42866454]
[1641495462187,0.781654,3449.5,3448.9,3.42866454]
[1641495462394,3.54261309,3449.6,3448.9,3.42866454]
[1641495462590,1.897182,3449.5,3448.9,2.96868254]
[1641495462791,2.644782,3449.5,3448.9,2.96868254]
[1641495462992,2.644782,3449.5,3449.0,2.96868254]
[1641495463193,2.644782,3449.5,3449.3,2.35165896]
[1641495463692,4.649572,3449.5,3449.3,2.35165896]
[1641495464193,17.209572,3449.5,3449.0,1.03629335]
[1641495464393,17.209572,3449.5,3448.7,3.2655508]
[1641495464394,4.649572,3449.5,3449.1,1.76599934]
[1641495464794,1.5,3449.2,3448.6,1.03629335]
[1641495464996,1.5,3449.2,3448.3,3.2655508]
[1641495464997,1.5,3448.7,3448.3,1.08884415]
[1641495465194,1.5,3448.4,3447.9,0.96969738]
[1641495465398,1.5,3448.1,3447.9,0.96969738]
[1641495465595,15.33385307,3448.5,3447.9,0.96969738]
[1641495465795,2.00479,3448.0,3447.9,0.96969738]
[1641495466199,2.00479,3448.0,3447.9,0.2677194]
[1641495466398,2.00479,3448.0,3447.7,3.24285801]
[1641495467403,2.00479,3448.0,3447.2,3.56241905]
[1641495467804,2.00479,3448.0,3447.1,3.45431956]
[1641495468203,2.00479,3448.0,3447.1,2.00479]
[1641495468802,1.84117245,3448.0,3447.1,2.00479]
[1641495470707,1.84117245,3448.0,3447.7,2.94638943]
[1641495470907,0.384472,3447.9,3447.7,2.94638943]
[1641495471709,0.384472,3447.9,3447.8,0.459982]
[1641495471910,0.384472,3447.9,3447.7,2.94638943]
[1641495472715,1.2152222,3448.0,3447.8,3.40637143]
[1641495472910,1.2152222,3448.0,3447.8,2.94638943]
[1641495473511,1.2152222,3448.0,3447.5,3.24102838]
[1641495473711,1.2152222,3448.0,3447.6,3.24102838]
[1641495474311,1.2152222,3448.0,3447.8,2.94612251]
[1641495474913,2.57536762,3448.0,3447.8,2.94612251]
[1641495475316,0.397182,3447.9,3447.8,2.94612251]
[1641495475715,0.397182,3447.9,3447.1,2.00479]
[1641495476419,0.397182,3447.9,3447.2,0.384472]
[1641495479021,0.397182,3447.9,3447.1,2.00479]
[1641495479720,0.397182,3447.9,3447.2,0.384472]
[1641495480324,2.57536762,3448.0,3447.2,0.384472]
[1641495480724,0.397182,3447.9,3447.1,2.00479]
[1641495480923,1.62495913,3447.4,3447.1,2.00479]
[1641495481124,1.62495913,3447.4,3447.2,0.459982]
[1641495481424,1.46132413,3447.4,3447.2,0.459982]
[1641495481823,0.384472,3447.6,3447.2,0.459982]
[1641495482426,30.1465,3449.4,3447.5,2.94918085]
[1641495482726,1.44933417,3449.9,3448.0,1.5]
[1641495482929,32.8106,3449.8,3448.4,1.5]
[1641495483124,32.8106,3449.8,3448.4,2.1767]
[1641495483326,1.44933417,3449.9,3448.4,2.1767]
[1641495483826,2.00479,3449.5,3448.7,2.00479]
[1641495484025,0.384472,3449.4,3448.7,2.00479]
[1641495484225,2.00479,3449.5,3448.8,1.884472]
[1641495484524,2.00479,3449.5,3449.0,1.5]
[1641495485927,2.00479,3449.9,3449.1,2.00479]
[1641495486127,0.384472,3449.8,3449.1,2.67979]
[1641495486527,0.384472,3449.8,3449.1,4.12849638]
[1641495486727,0.384472,3449.8,3449.3,1.5]
[1641495486929,2.00479,3450.2,3449.3,2.94861404]
[1641495487328,1.69441689,3449.8,3449.4,1.5]
[1641495487529,1.69441689,3449.8,3449.5,0.384472]
[1641495487732,1.69441689,3449.8,3449.6,0.459982]
[1641495487930,1.69441689,3449.8,3449.7,2.00479]
[1641495491134,1.69441689,3449.8,3449.7,0.03209473]
[1641495491936,1.69441689,3449.8,3449.3,2.40032142]
[1641495492139,1.69441689,3449.8,3449.3,1.44861404]
[1641495492338,3.78293416,3449.9,3449.3,1.44861404]
[1641495493538,3.35959875,3449.7,3449.3,1.44861404]
[1641495493944,3.75678075,3449.7,3449.3,1.44861404]
[1641495498947,3.35959875,3449.7,3449.3,1.44861404]
[1641495499449,3.35959875,3449.7,3448.3,1.44901286]
[1641495499450,2.16653867,3449.1,3448.3,1.44901286]
[1641495499647,0.781654,3449.0,3448.3,1.44901286]
[1641495499847,1.540054,3449.0,3448.3,1.44901286]
[1641495500048,1.540054,3449.0,3448.3,3.45380286]
[1641495500248,1.142872,3449.0,3448.5,0.384472]
[1641495500448,0.7584,3449.0,3448.9,1.44878194]
[1641495500650,0.7584,3449.0,3448.9,1.90876394]
[1641495500852,0.7584,3449.0,3448.9,1.44878194]
[1641495501052,4.17132867,3449.1,3448.9,1.44878194]
[1641495501649,4.17132867,3449.1,3448.4,1.44896667]
[1641495501850,0.384472,3449.0,3448.4,1.44896667]
[1641495502051,0.384472,3449.0,3448.7,2.00479]
[1641495502252,0.384472,3449.0,3448.8,0.459982]
[1641495502649,2.00479,3449.5,3448.8,1.106082]
[1641495503252,2.00479,3449.5,3449.1,1.5]
[1641495503452,1.96334411,3449.9,3449.4,2.94856997]
[1641495503654,2.3554631,3450.7,3449.6,1.5]
[1641495503852,2.3554631,3450.7,3449.6,2.2665]
[1641495504054,2.00479,3450.2,3449.6,0.7665]
[1641495504255,2.389262,3450.2,3449.6,0.7665]
[1641495504655,2.389262,3450.2,3449.7,0.384472]
[1641495504853,2.389262,3450.2,3449.9,1.44836226]
[1641495505054,2.389262,3450.2,3449.6,0.7665]
[1641495505455,2.389262,3450.2,3449.4,3.45333479]
[1641495505857,0.397182,3450.1,3449.4,3.45333479]
[1641495506855,2.389262,3450.2,3449.4,3.45333479]
[1641495507056,2.389262,3450.2,3449.5,0.384472]
[1641495507456,0.98145336,3452.3,3450.1,2.94822802]
[1641495507457,32.34,3451.6,3450.1,2.94822802]
[1641495507661,32.5301,3451.6,3450.1,15.50822802]
[1641495507855,32.5301,3451.6,3450.1,14.00822802]
[1641495508055,2.00479,3450.9,3450.2,1.5]
[1641495508256,2.00479,3450.9,3450.2,2.049]
[1641495508755,2.00479,3450.9,3450.2,0.549]
[1641495508957,2.00479,3450.9,3450.3,12.944472]
[1641495508958,2.389262,3450.9,3450.3,12.944472]
[1641495509155,2.00479,3450.9,3450.4,1.44812526]
[1641495509356,2.00479,3450.9,3450.4,2.52180715]
[1641495509558,2.00479,3450.9,3450.4,1.07368189]
[1641495509757,2.00479,3450.9,3450.3,0.384472]
[1641495513063,2.00479,3450.9,3450.8,1.44791348]
[1641495513262,2.00479,3450.9,3450.8,1.90789548]
[1641495514163,0.384472,3451.2,3450.8,1.90789548]
[1641495515763,0.384472,3451.2,3450.8,1.44791348]
[1641495516569,0.384472,3451.2,3450.5,2.00479]
[1641495517168,0.86934069,3450.9,3450.5,2.00479]
[1641495518668,0.86934069,3450.9,3450.7,1.44799735]
[1641495518865,0.86934069,3450.9,3450.8,0.459982]
[1641495519067,0.86934069,3450.9,3450.7,1.44799735]
[1641495519668,0.86934069,3450.9,3450.7,1.90797935]
[1641495519866,0.86934069,3450.9,3450.7,1.44799735]
[1641495520267,0.397182,3450.8,3450.5,2.00479]
[1641495520466,0.397182,3450.8,3450.6,0.459982]
[1641495520666,0.397182,3450.8,3450.5,2.00479]
[1641495521067,0.397182,3450.8,3450.5,0.98168285]
[1641495521268,1.22752495,3450.9,3450.5,0.98168285]
[1641495521471,1.22752495,3450.9,3450.5,1.72888285]
[1641495521669,2.00479,3451.6,3450.8,2.94797219]
[1641495521866,2.00479,3451.6,3451.3,1.44777304]
[1641495522067,2.00479,3451.6,3451.4,0.459982]
[1641495522368,2.00479,3452.0,3451.4,0.459982]
[1641495523367,2.00479,3452.0,3451.5,0.384472]
[1641495523969,2.389262,3452.0,3451.3,1.44777304]
[1641495524171,3.015762,3452.0,3451.3,1.44777304]
[1641495524568,0.397182,3451.9,3451.3,1.44777304]
[1641495524769,2.29012618,3451.5,3451.2,2.00479]
[1641495525069,2.29012618,3451.5,3451.3,0.459982]
[1641495525469,2.29012618,3451.5,3451.4,0.384472]
[1641495527771,2.29012618,3451.5,3451.2,2.00479]
[1641495528172,0.397182,3451.4,3451.2,2.00479]
[1641495529172,0.397182,3451.4,3451.2,2.464772]
[1641495529372,0.397182,3451.4,3451.2,2.00479]
[1641495529972,0.397182,3451.4,3451.2,2.464772]
[1641495530173,0.397182,3451.4,3451.2,2.00479]
[1641495530374,2.29012618,3451.5,3451.2,2.00479]
[1641495530576,2.29012618,3451.5,3451.2,2.75679]
[1641495531074,2.29012618,3451.5,3451.3,0.459982]
[1641495532075,2.29012618,3451.5,3451.2,2.75679]
[1641495533082,2.68730818,3451.5,3451.2,2.75679]
[1641495533282,2.68730818,3451.5,3451.3,0.459982]
[1641495533483,2.29012618,3451.5,3451.3,0.459982]
[1641495533683,2.00479,3452.0,3451.3,0.459982]
[1641495533883,2.00479,3452.0,3451.4,1.44772273]
[1641495534785,2.00479,3452.0,3451.4,2.94772273]
[1641495534985,2.00479,3452.0,3451.4,1.44772273]
[1641495536588,2.00479,3452.0,3451.4,14.00772273]
[1641495536987,2.00479,3452.0,3451.5,1.5]
[1641495537190,2.00479,3452.0,3451.9,1.44747965]
[1641495537389,2.00479,3452.0,3451.9,2.91093365]
[1641495538390,4.00958,3452.7,3451.9,2.91093365]
[1641495540991,0.384472,3452.6,3451.9,2.91093365]
[1641495541391,4.00958,3452.7,3451.9,2.91093365]
[1641495541590,1.04254696,3453.1,3452.6,1.44710471]
[1641495541792,33.0645,3453.6,3452.7,12.944472]
[1641495541993,0.98145336,3454.3,3453.4,1.44687858]
[1641495542190,0.98145336,3454.3,3453.5,0.459982]
[1641495542391,2.00479,3454.1,3453.6,1.44667554]
[1641495543892,2.786444,3454.1,3453.3,2.00479]
[1641495544092,3.380644,3454.1,3453.3,2.00479]
[1641495544293,1.04227081,3454.0,3453.3,2.00479]
[1641495544895,1.43945281,3454.0,3453.3,2.00479]
[1641495545696,2.93945281,3454.0,3453.3,2.00479]
[1641495545897,1.43945281,3454.0,3453.3,2.00479]
[1641495546597,1.43945281,3454.0,3453.4,0.384472]
[1641495546798,1.43945281,3454.0,3453.4,1.110472]
[1641495546998,1.43945281,3454.0,3453.4,0.726]
[1641495547197,1.34236523,3453.9,3453.4,0.726]
[1641495547497,0.397182,3453.8,3453.4,0.726]
[1641495547896,0.397182,3453.8,3453.3,2.00479]
[1641495549801,0.397182,3453.8,3453.3,2.389262]
[1641495550402,0.397182,3453.8,3453.3,2.00479]
[1641495552005,1.1173926,3453.2,3453.0,2.00479]
[1641495552309,0.384472,3453.1,3453.0,2.00479]
[1641495552504,2.00479,3453.5,3453.0,2.00479]
[1641495552704,0.397182,3453.4,3453.0,2.00479]
[1641495554307,0.384472,3453.3,3453.0,2.00479]
[1641495554504,0.397182,3453.4,3453.1,0.459982]
[1641495555407,2.00479,3453.5,3453.1,0.459982]
[1641495556205,0.384472,3453.4,3453.1,0.459982]
[1641495556809,0.384472,3453.4,3453.0,2.00479]
[1641495557007,0.397182,3453.3,3453.0,2.00479]
[1641495557809,0.397182,3453.3,3452.6,1.4472157]
[1641495559011,0.397182,3453.3,3452.7,0.384472]
[1641495559210,0.397182,3453.3,3452.7,1.140772]
[1641495559813,0.384472,3453.4,3452.7,1.140772]
[1641495560014,4.00958,3453.5,3452.7,1.140772]
[1641495560513,4.00958,3453.5,3452.8,2.00479]
[1641495560714,4.00958,3453.5,3453.1,1.44701466]
[1641495561017,0.384472,3453.4,3452.8,2.00479]
[1641495561415,0.384472,3453.4,3452.8,2.389262]
[1641495561616,4.00958,3453.5,3452.8,2.389262]
[1641495561814,4.00958,3453.5,3452.8,3.140362]
[1641495562314,4.00958,3453.5,3452.8,4.58751697]
[1641495564118,4.00958,3453.5,3452.8,6.08751697]
[1641495564318,2.00479,3453.5,3453.4,1.44686811]
[1641495564520,2.00479,3453.5,3453.4,1.90685011]
[1641495565319,2.00479,3453.5,3453.4,2.94221995]
[1641495567020,1.61041199,3454.8,3453.4,17.00221995]
[1641495567220,1.61041199,3454.8,3453.5,12.56]
[1641495567420,2.47878661,3454.8,3453.5,0.6311]
[1641495567623,2.47878661,3454.8,3453.8,1.5]
[1641495568020,2.47878661,3454.8,3453.6,0.6129]
[1641495568221,2.47878661,3454.8,3453.8,1.5]
[1641495568420,2.47878661,3454.8,3453.9,12.56]
[1641495568622,0.86837514,3454.8,3454.2,12.56]
[1641495568822,2.00479,3454.9,3454.7,1.44631566]
[1641495569122,2.00479,3454.9,3454.8,0.459982]
[1641495569733,2.00479,3454.9,3454.8,1.52775924]
[1641495571628,9e-05,3454.9,3454.8,1.52775924]
[1641495571825,1.04168046,3456.0,3454.8,1.52775924]
[1641495571826,1.04168046,3456.0,3454.9,12.56]
[1641495572024,1.04168046,3456.0,3454.9,13.1414]
[1641495572224,1.04168046,3456.0,3455.1,12.56]
[1641495572629,1.04168046,3456.0,3455.5,2.00479]
[1641495572824,1.04168046,3456.0,3455.6,13.93159072]
[1641495573027,1.04168046,3456.0,3455.6,2.21369072]
[1641495573224,1.04168046,3456.0,3455.9,1.44581797]
[1641495573427,1.04168046,3456.0,3455.9,1.90579997]
[1641495574435,2.00479,3456.3,3455.9,1.90579997]
[1641495574836,2.00479,3456.3,3455.9,2.64899997]
[1641495575636,2.00479,3456.3,3455.9,2.18901797]
[1641495575637,2.401972,3456.3,3455.9,2.18901797]
[1641495576038,2.401972,3456.3,3455.9,1.44581797]
[1641495576238,2.00479,3456.3,3455.9,1.44581797]
[1641495576439,2.401972,3456.3,3455.9,1.44581797]
[1641495576640,1.41817695,3456.0,3455.9,1.44581797]
[1641495577040,1.81535895,3456.0,3455.6,0.98711872]
[1641495577239,1.80515191,3455.5,3455.4,1.44605213]
[1641495579243,2.20233391,3455.5,3455.4,1.44605213]
[1641495579445,2.20233391,3455.5,3455.4,1.90603413]
[1641495579645,2.20233391,3455.5,3455.4,1.44605213]
[1641495581446,2.20233391,3455.5,3455.1,1.168492]
[1641495581447,0.397182,3455.5,3455.1,1.168492]
[1641495582746,0.397182,3455.5,3455.1,2.90755967]
[1641495583546,2.83576327,3455.4,3455.1,1.73906767]
[1641495583746,0.397182,3455.3,3455.1,1.73906767]
[1641495583948,0.384472,3455.2,3454.9,1.73906767]
[1641495584349,0.397182,3455.1,3454.9,1.73906767]
[1641495584748,2.00479,3455.0,3454.9,1.73906767]
[1641495584949,2.00479,3455.0,3454.7,4.05782456]
[1641495585148,0.397182,3454.9,3454.7,1.73906767]
[1641495585349,2.00479,3455.0,3454.7,1.73906767]
[1641495585553,2.00479,3455.0,3454.8,0.459982]
[1641495585751,2.00479,3455.0,3454.7,1.73906767]
[1641495586551,2.00479,3455.0,3454.6,1.44629055]
[1641495587452,0.397182,3454.9,3454.6,1.44629055]
[1641495587650,0.397182,3454.9,3454.7,1.73906767]
[1641495587851,2.34678014,3454.8,3454.7,1.73906767]
[1641495588053,2.34678014,3454.8,3454.4,2.31875689]
[1641495588250,0.397182,3454.7,3454.4,2.31875689]
[1641495588852,2.00479,3454.5,3454.4,2.31875689]
[1641495589051,2.786444,3454.5,3454.4,2.31875689]
[1641495589251,2.786444,3454.5,3454.1,3.20312492]
[1641495590252,2.786444,3454.5,3454.1,2.55019062]
[1641495590455,2.786444,3454.5,3453.7,2.31875689]
[1641495590655,2.786444,3454.5,3453.8,0.384472]
[1641495590853,2.00479,3454.1,3453.8,0.384472]
[1641495591053,2.00479,3454.1,3453.9,0.459982]
[1641495591255,0.397182,3454.2,3453.8,0.384472]
[1641495591455,2.389262,3454.5,3453.8,0.384472]
[1641495591654,0.397182,3454.4,3453.8,0.384472]
[1641495591955,0.397182,3454.4,3453.7,2.31875689]
[1641495592557,2.25511113,3454.0,3453.8,2.31875689]
[1641495592755,4.25990113,3454.0,3453.8,2.77873889]
[1641495592956,4.25990113,3454.0,3453.8,2.31875689]
[1641495593358,0.397182,3453.9,3453.8,2.31875689]
[1641495593758,0.397182,3453.9,3453.5,2.31875689]
[1641495593958,0.384472,3453.8,3453.5,2.31875689]
[1641495594157,0.384472,3453.8,3453.6,0.459982]
[1641495594158,0.397182,3453.7,3453.6,0.459982]
[1641495594358,0.397182,3453.7,3453.5,2.31875689]
[1641495594959,0.397182,3453.7,3453.4,2.31875689]
[1641495595457,1.5,3453.5,3453.4,5.689e-05]
[1641495595660,1.897182,3453.5,3453.4,5.689e-05]
[1641495596258,1.897182,3453.5,3453.3,1.74726764]
[1641495596460,4.03585611,3453.5,3453.3,1.74726764]
[1641495597558,2.53585611,3453.5,3453.3,1.74726764]
[1641495597957,4.03585611,3453.5,3453.3,1.74726764]
[1641495598360,2.53585611,3453.5,3453.3,1.74726764]
[1641495598558,2.53585611,3453.5,3453.4,0.459982]
[1641495599158,2.13867411,3453.5,3453.4,0.459982]
[1641495599559,2.13867411,3453.5,3453.1,0.384472]
[1641495599762,1.97432975,3454.8,3453.4,1.5]
[1641495599960,0.98145336,3455.0,3454.1,12.56]
[1641495600161,0.98145336,3455.0,3454.1,13.3343]
[1641495600362,0.98145336,3455.0,3454.1,0.7743]
[1641495600763,0.98145336,3455.1,3454.1,0.7743]
[1641495600965,0.98145336,3455.1,3454.5,2.00479]
[1641495601162,1.37863536,3455.1,3454.6,0.384472]
[1641495601762,0.98145336,3455.1,3454.6,0.384472]
[1641495602163,2.00479,3455.3,3454.6,0.384472]
[1641495602364,2.401972,3455.3,3454.6,0.384472]
[1641495602963,2.401972,3455.3,3454.5,2.00479]
[1641495603264,2.401972,3455.3,3454.7,1.74617842]
[1641495603663,1.5,3454.8,3454.7,1.74617842]
[1641495603864,0.397182,3454.7,3454.4,2.3283481]
[1641495604263,1.897182,3454.7,3454.4,2.3283481]
[1641495604664,1.897182,3454.7,3454.5,2.3283481]
[1641495604863,4.00958,3454.6,3454.5,2.3283481]
[1641495605566,4.00958,3454.6,3454.2,2.94612251]
[1641495605765,1.04226337,3454.1,3453.7,0.88436803]
[1641495605968,1.5,3453.8,3452.9,4.02810768]
[1641495606266,1.5,3453.5,3452.9,4.02810768]
[1641495606466,0.397182,3453.4,3452.9,4.02810768]
[1641495606665,0.6637,3453.4,3453.3,0.19183278]
[1641495606864,3.065672,3453.4,3453.3,0.19183278]
[1641495607468,2.66849,3453.4,3453.3,0.19183278]
[1641495607872,2.66849,3453.4,3453.1,1.42126078]
[1641495608068,0.6637,3453.4,3453.1,1.42126078]
[1641495608268,2.00479,3453.6,3453.2,1.4468702]
[1641495609169,2.00479,3453.6,3453.2,14.0068702]
[1641495609468,2.00479,3454.2,3453.2,14.0068702]
[1641495609868,2.00479,3454.2,3453.2,2.9468702]
[1641495610075,1.04192611,3455.2,3454.0,1.5]
[1641495610273,1.04192611,3455.2,3454.0,14.56373952]
[1641495610870,2.00479,3455.1,3454.3,2.00479]
[1641495611079,0.397182,3455.0,3454.3,2.00479]
[1641495612372,0.397182,3455.0,3454.8,1.74977058]
[1641495613676,0.397182,3455.0,3454.6,1.74977058]
[1641495614375,1.897182,3455.0,3454.6,1.74977058]
[1641495614576,1.5,3454.7,3454.5,1.74977058]
[1641495614881,3.901972,3454.6,3454.5,1.74977058]
[1641495615076,2.401972,3454.6,3454.5,1.74977058]
[1641495615576,3.901972,3454.6,3454.0,2.91628429]
[1641495615776,1.5,3454.1,3454.0,1.75383896]
[1641495615975,1.897182,3454.1,3454.0,1.75383896]
[1641495616576,1.897182,3454.1,3454.0,0.54580183]
[1641495616776,1.897182,3454.1,3453.5,0.62058533]
[1641495616981,2.00479,3453.6,3452.8,2.00479]
[1641495617178,2.00479,3453.6,3452.9,0.384472]
[1641495619180,0.397182,3453.5,3452.8,2.00479]
[1641495620181,2.00479,3453.6,3452.8,2.00479]
[1641495620480,2.00479,3453.6,3452.8,3.889262]
[1641495621082,2.00479,3453.6,3452.8,2.389262]
[1641495621288,0.397182,3453.5,3453.0,2.9301725]
[1641495621484,1.163182,3453.5,3453.0,2.9301725]
[1641495622284,1.163182,3453.5,3452.8,4.9349625]
[1641495622483,1.163182,3453.5,3452.8,5.3194345]
[1641495622882,2.00479,3453.6,3452.8,6.8194345]
[1641495623084,2.00479,3453.6,3452.8,7.5617345]
[1641495623283,2.00479,3453.6,3453.1,2.34254358]
[1641495624083,2.401972,3453.6,3453.1,2.34254358]
[1641495624283,2.401972,3453.6,3453.1,5.27271608]
[1641495624482,1.85610308,3453.6,3453.4,2.34254358]
[1641495625282,1.85610308,3453.6,3453.4,1.7560558]
[1641495625881,1.45892108,3453.6,3453.5,0.459982]
[1641495626083,4.02444301,3453.9,3453.5,0.459982]
[1641495626282,2.01965301,3453.9,3453.5,1.263282]
[1641495626486,2.01965301,3453.9,3453.5,1.647754]
[1641495626884,2.01965301,3453.9,3453.5,0.8033]
[1641495627083,2.01965301,3453.9,3453.6,2.00479]
[1641495627283,2.01965301,3453.9,3453.7,0.459982]
[1641495627684,2.01965301,3453.9,3453.6,2.00479]
[1641495630697,2.01965301,3453.9,3453.7,0.459982]
[1641495630898,2.01965301,3453.9,3453.6,2.00479]
[1641495633298,2.41683501,3453.9,3453.6,2.00479]
[1641495634399,2.41683501,3453.9,3453.4,1.7560558]
[1641495634999,2.00479,3453.8,3453.4,1.7560558]
[1641495635400,0.397182,3453.7,3453.4,1.7560558]
[1641495637008,1.897182,3453.7,3453.4,1.7560558]
[1641495637205,1.07237497,3453.3,3453.1,2.34254358]
[1641495637405,0.397182,3453.2,3453.1,2.34254358]
[1641495637605,1.5,3453.4,3453.1,2.34254358]
[1641495638004,0.397182,3453.3,3453.1,2.34254358]
[1641495638704,1.5,3453.2,3452.9,2.9301725]
[1641495638905,5.03011231,3453.0,3452.6,3.22099743]
[1641495639107,5.03011231,3453.0,3452.4,3.1118596]
[1641495639108,5.50958,3452.7,3452.4,3.1118596]
[1641495639311,0.397182,3452.6,3452.4,3.1118596]
[1641495640110,0.397182,3452.6,3452.4,0.62058533]
[1641495640708,0.397182,3452.6,3451.9,3.22099743]
[1641495640911,0.397182,3452.6,3451.4,1.44762423]
[1641495641108,2.00479,3451.9,3451.4,1.44762423]
[1641495641310,2.00479,3451.9,3451.4,1.83209623]
[1641495641913,2.401972,3451.9,3451.4,1.83209623]
[1641495642110,2.401972,3451.9,3451.4,2.06820956]
[1641495642512,2.401972,3451.9,3451.4,0.62058533]
[1641495642713,2.93679765,3451.8,3451.4,0.62058533]
[1641495642911,0.397182,3451.7,3451.4,0.62058533]
[1641495643311,2.93679765,3451.8,3451.2,3.22099743]
[1641495643312,2.79725594,3451.8,3451.2,3.22099743]
[1641495643512,1.5,3451.5,3451.2,0.28363476]
[1641495643711,2.3641,3451.5,3451.2,0.28363476]
[1641495643912,0.397182,3451.4,3451.2,0.28363476]
[1641495644318,1.5,3451.3,3450.7,2.86124429]
[1641495644517,1.5,3451.1,3451.0,2.92607807]
[1641495644714,15.50858466,3451.1,3451.0,2.92607807]
[1641495645112,19.51816466,3451.1,3451.0,2.92607807]
[1641495646114,6.95816466,3451.1,3451.0,2.92607807]
[1641495646314,6.95816466,3451.1,3450.5,1.12802514]
[1641495646517,6.95816466,3451.1,3450.3,2.34558173]
[1641495646716,0.397182,3451.0,3450.3,2.34558173]
[1641495646918,4.00958,3451.1,3450.4,0.781654]
[1641495647118,4.00958,3451.1,3450.4,3.586044]
[1641495647615,4.406762,3451.1,3450.4,3.201572]
[1641495647816,1.53770384,3450.7,3450.4,3.201572]
[1641495648116,1.53770384,3450.7,3450.5,0.459982]
[1641495648516,1.53770384,3450.7,3450.6,0.397182]
[1641495648917,1.53770384,3450.7,3450.6,0.781654]
[1641495649318,2.65853486,3451.4,3450.6,3.72953185]
[1641495649519,4.50562945,3452.4,3450.8,1.5]
[1641495649719,4.50562945,3452.4,3450.9,0.16343697]
[1641495649917,4.50562945,3452.4,3450.9,1.60922424]
[1641495650520,4.50562945,3452.4,3450.9,0.99632424]
[1641495651119,2.00479,3451.9,3451.1,4.93086807]
[1641495651319,2.00479,3451.9,3451.2,0.397182]
[1641495651719,2.401972,3451.9,3451.2,0.397182]
[1641495653421,2.401972,3451.9,3451.1,2.00479]
[1641495653821,2.401972,3451.9,3451.2,0.397182]
[1641495654024,2.401972,3451.9,3451.2,1.171082]
[1641495655022,2.401972,3451.9,3451.2,1.555554]
[1641495655423,2.401972,3451.9,3451.2,0.7739]
[1641495655623,1.04298598,3451.7,3451.2,0.7739]
[1641495656024,0.397182,3451.6,3451.2,0.7739]
[1641495657526,0.397182,3451.6,3450.6,30.7027]
[1641495657727,0.397182,3451.6,3450.4,4.79144683]
[1641495658528,0.397182,3451.6,3450.4,1.33863013]
[1641495658729,0.984982,3451.6,3450.1,1.44815042]
[1641495659127,2.00479,3450.9,3450.1,3.45294042]
[1641495659328,2.00479,3450.9,3450.2,0.781654]
[1641495659527,2.00479,3450.9,3450.3,1.5]
[1641495659727,2.00479,3450.9,3450.2,0.781654]
[1641495660129,0.397182,3450.8,3450.2,0.781654]
[1641495660730,0.23371185,3450.8,3450.2,0.781654]
[1641495661330,2.00479,3450.9,3450.2,0.781654]
[1641495661730,3.28172992,3450.9,3450.2,0.781654]
[1641495662932,3.28172992,3450.9,3450.2,0.384472]
[1641495663132,3.28172992,3450.9,3450.1,2.00479]
[1641495663432,3.28172992,3450.9,3449.7,2.00479]
[1641495663632,1.0433679,3450.4,3449.7,2.00479]
[1641495663832,0.233711,3450.3,3449.7,2.00479]
[1641495664833,0.233711,3450.3,3449.2,1.44855319]
[1641495665334,2.00479,3449.8,3449.2,1.44855319]
[1641495665535,2.238501,3449.8,3449.2,1.44855319]
[1641495666034,2.00479,3449.8,3449.2,3.73020719]
[1641495666235,1.0433679,3450.4,3449.7,12.56]
[1641495666435,31.41287772,3451.4,3450.2,1.5]
[1641495666635,1.04307772,3451.4,3450.2,1.5]
[1641495667237,2.00479,3451.0,3450.2,3.50479]
[1641495667436,0.233711,3450.9,3450.3,0.397182]
[1641495668036,0.233711,3450.9,3450.4,0.384472]
[1641495668237,0.233711,3450.9,3450.4,1.253872]
[1641495668635,0.233711,3450.9,3450.5,0.397182]
[1641495669237,2.00479,3451.0,3450.5,0.397182]
[1641495670140,2.00479,3451.0,3450.6,0.384472]
[1641495670539,2.00479,3451.0,3450.7,0.397182]
[1641495670739,1.84132556,3451.0,3450.7,0.397182]
[1641495672745,1.84132556,3451.0,3450.8,0.459982]
[1641495672942,1.84132556,3451.0,3450.7,0.397182]
[1641495674845,4.12004016,3451.0,3450.7,0.397182]
[1641495675045,4.35375116,3451.0,3450.6,0.384472]
[1641495675447,4.35375116,3451.0,3450.2,2.79268436]
[1641495675646,5.07185116,3451.0,3450.2,2.00479]
[1641495676047,5.07185116,3451.0,3450.3,0.384472]
[1641495678348,5.07185116,3451.0,3450.3,0.781654]
[1641495681558,6.92499193,3450.4,3450.3,0.781654]
[1641495681755,6.92499193,3450.4,3450.3,1.241636]
[1641495682457,6.92499193,3450.4,3450.3,0.384472]
[1641495683059,6.92499193,3450.4,3450.2,2.00479]
[1641495683259,6.95675732,3449.9,3449.3,1.44850912]
[1641495683556,5.5096173,3449.3,3449.2,5.462]
[1641495683756,0.6765,3449.3,3449.2,5.462]
[1641495684157,0.6765,3449.3,3449.2,0.459982]
[1641495684759,0.6765,3449.3,3449.2,0.857164]
[1641495685257,2.00479,3449.9,3449.2,0.857164]
[1641495685761,0.233711,3449.8,3449.2,0.397182]
[1641495686758,2.00479,3449.9,3449.2,0.397182]
[1641495686958,2.238501,3449.9,3449.2,0.397182]
[1641495687659,0.233711,3449.8,3449.2,0.397182]
[1641495687861,1.116911,3449.8,3449.2,0.397182]
[1641495691663,1.116911,3449.8,3449.1,2.00479]
[1641495692663,1.116911,3449.8,3449.2,0.384472]
[1641495693064,1.116911,3449.8,3449.1,2.401972]
[1641495693866,0.233711,3449.8,3449.1,2.401972]
[1641495694665,0.233711,3449.8,3449.2,0.384472]
[1641495695166,1.16895301,3449.4,3449.1,2.401972]